Cogmind - Beta 16.1 @@@ ROGUE MODE // 2026.02.14 @ 14:04:17 Player: delto Result: Self-destructed Performance ------------- Evolutions (3) 1500 Regions Visited (6) 1200 Robots Destroyed (100) 500 Value Destroyed (2978) 2978 Prototype IDs (23) 460 Alien Tech Used (0) 0 Bonus (453) 453 TOTAL SCORE: 7091 Bonus ------- High Alert Combat Kills 153 Aligned with FarCom 300 Cogmind --------- Core Integrity 172/700 Matter 194/300 Energy 4/100 System Corruption 9% Temperature Cool (0) Movement Treading (170) Location -7/Factory Parts ------- > --- POWER (1) -------- (None) > --- PROPULSION (4) --- Armored Treads Armored Treads Armored Treads > --- UTILITY (6) ------ Improved Heat Sink Improved Heat Sink Target Analyzer > --- WEAPON (2) ------- (None) > --- INVENTORY (5) ---- Cargo Storage Unit Peak State ------------ > --- POWER ------------ Improved Deuterium Engine > --- PROPULSION ------- Armored Treads Advanced Treads Advanced Treads Advanced Treads > --- UTILITY ---------- Improved Heat Sink Humpback Target Analyzer Armor Integrity Analyzer Hardened Medium Armor Plating > --- WEAPON ----------- YOLO Cannon > --- INVENTORY -------- Improved Ion Engine Light Nuclear Core Light Nuclear Core Micro Nuclear Core Armored Treads Armored Treads Armored Treads Armored Treads Improved Heat Sink Cargo Storage Unit Compact Matter Pod Improved Terrain Scanner Improved Terrain Scanner Improved Targeting Computer Target Analyzer Target Analyzer Recoil Stabilizer Matter Filter Weapon Cycler Advanced ECM Suite Improved Power Shielding Improved Weapon Shielding Backup Plating III Hardened Medium Armor Plating Improved Light Armor Plating Powered Armor Corruption Screen Arc Projector Cooled Pulse Rifle Heavy Ion Cannon Gauss Cannon Missile Launcher Concussive RPG Concussive RPG [Rating: 62] Favorites ----------- Power Light Nuclear Core Engine Improved Deuterium Engine Power Core Light Nuclear Core Propulsion Advanced Treads Treads Advanced Treads Wheel Compact Wheel Utility Humpback Device Improved Heat Sink Storage Humpback Processor Target Analyzer Hackware System Shield Protection Weapon Shielding Weapon YOLO Cannon Energy Gun Arc Projector Energy Cannon YOLO Cannon Ballistic Gun Shotgun Launcher Missile Launcher Build | -11 -10 -10 -10 -9 -8 -7 ------- Run | Yrd Mat Min Exi Min Mat Fac Slots Evolved 6 | . . . . . 4 2 Power . | . . . . . . . Propulsion 2 | . . . . . 1 1 Utility 4 | . . . . . 3 1 Weapon . | . . . . . . . Parts Attached 51 | 7 12 1 2 . 10 19 Power 7 | 1 2 1 . . 2 1 Engine 3 | 1 . . . . 1 1 Core 4 | . 2 1 . . 1 . Reactor . | . . . . . . . Propulsion 11 | 2 2 . . . 3 4 Treads 10 | 1 2 . . . 3 4 Leg . | . . . . . . . Wheel 1 | 1 . . . . . . Hover . | . . . . . . . Flight . | . . . . . . . Utility 25 | 2 5 . 1 . 5 12 Device 8 | 1 . . . . 3 4 Storage 5 | 1 2 . 1 . . 1 Processor 6 | . 2 . . . 1 3 Hackware 2 | . . . . . . 2 Protection 4 | . 1 . . . 1 2 Artifact . | . . . . . . . Weapon 8 | 2 3 . 1 . . 2 Energy Gun 1 | . . . . . . 1 Energy Cannon 1 | . . . 1 . . . Ballistic Gun 5 | 2 3 . . . . . Ballistic Cannon . | . . . . . . . Launcher 1 | . . . . . . 1 Special Weapon . | . . . . . . . Impact Weapon . | . . . . . . . Slashing Weapon . | . . . . . . . Piercing Weapon . | . . . . . . . Special Melee Weapon . | . . . . . . . Unidentified Prototypes . | . . . . . . . Parts Lost 18 | . 1 1 . . 3 13 Power 4 | . 1 1 . . 1 1 Propulsion 6 | . . . . . 2 4 Utility 5 | . . . . . . 5 Weapon 3 | . . . . . . 3 Highest Loss Streak 11 | . 1 1 . . 2 11 To Critical Strikes . | . . . . . . . Average Backups 21 | 2 8 13 14 17 23 32 Power 2 | . . . 1 1 3 4 Propulsion 2 | 1 1 1 1 1 2 4 Utility 12 | . 5 10 9 10 10 18 Weapon 3 | . 1 2 3 4 6 2 Tool/Special . | . . . . . . . Unused Backups 48 | . 3 1 . . 3 41 Power 4 | . . . . . . 4 Propulsion 4 | . 2 . . . . 2 Utility 26 | . 1 1 . . . 24 Weapon 12 | . . . . . 3 9 Tool/Special 2 | . . . . . . 2 Average Slot Usage (%) 84 | . 99 100 77 71 80 82 Engine 3 | . . . . . 3 6 Core 7 | . 13 14 14 14 5 . Treads 27 | . 23 28 28 28 26 29 Device 7 | . 2 . . . 14 11 Storage 10 | . 14 14 14 14 9 6 Processor 7 | . 10 14 4 . . 12 Protection 3 | . 1 . . . 11 2 Energy Cannon 6 | . . . 12 14 9 6 Ballistic Gun 7 | . 27 28 3 . . . Peak Build Rating 62 | 10 14 14 30 29 47 62 Average Rating 36 | 6 12 13 27 29 42 56 On Entrance 20 | . 10 14 14 29 29 47 Avg Prop Armor Cover (%) 8 | 15 6 . . . . . Naked Turns . | . . . . . . . Heaviest Build 237 | 11 31 31 223 223 235 237 Greatest Support 86 | 20 40 40 40 40 66 86 Greatest Overweight (x) 50 | . . . 5 5 11 50 Average Overweight (x) 1 | . . . 2 5 3 2 Largest Inventory Capacity 35 | 8 15 15 35 35 35 35 Average Capacity 27 | 7 9 15 29 35 35 34 Most Carried 35 | 4 13 15 16 18 35 35 Average Carried 21 | 3 8 13 14 17 23 32 Final Capacity 35 | 8 15 15 35 35 35 5 Final Carried 32 | 4 13 14 16 18 32 2 Class Distribution -------------------- 59% | Hauler-Mutant 29% | Mutant 11% | Hauler-Skirmisher Dominant Class ---------------- Mutant | -10/Materials Mutant | -10/Mines Hauler-Mutant | -10/Exiles Hauler-Mutant | -9/Mines Hauler-Mutant | -8/Materials Hauler-Mutant | -7/Factory Resources | -11 -10 -10 -10 -9 -8 -7 ----------- Run | Yrd Mat Min Exi Min Mat Fac Matter Collected 1730 | 294 611 260 40 20 287 218 Remotely . | . . . . . . . Salvage Created 3219 | 104 407 243 . 91 1104 1270 Parts 166 | 6 22 16 . 6 61 55 Haulers Intercepted 1 | . . . . . 1 . Recyclers Shooed 2 | . . 1 . . 1 . Parts Field Recycled . | . . . . . . . Retrieved Matter . | . . . . . . . Parts Self-Destructed . | . . . . . . . Prevented . | . . . . . . . Parts Restored . | . . . . . . . Kills | -11 -10 -10 -10 -9 -8 -7 ------- Run | Yrd Mat Min Exi Min Mat Fac Combat Hostiles Destroyed 63 | . 8 7 . 3 25 20 Guns 15 | . 8 7 . . . . Cannons 14 | . . . . 2 6 6 AOE 27 | . . . . 1 16 10 Classes Destroyed 12 | 2 4 . . . 5 1 Worker 8 | . 1 . . . 3 4 Builder 4 | . . . . . 1 3 Tunneler 2 | 1 . . . . 1 . Hauler 1 | . . . . . 1 . Recycler 14 | 1 1 1 . . 4 7 Watcher 8 | . 3 . . . 2 3 Swarmer 14 | . 3 3 . . 7 1 Grunt 36 | . 5 4 . 3 12 12 Duelist 3 | . . . . . 2 1 Sentry 4 | . . . . . 3 1 Hunter 2 | . . . . . 1 1 Programmer 4 | . . . . . . 4 Best Kill Streak 7 | 1 4 6 . 3 6 7 Combat Bots Only 5 | . 4 5 . 3 5 3 Max Kills in Single Turn 5 | 1 1 1 . 2 5 4 Gunslinging . | . . . . . . . Exploded 3 | . . . . 1 3 2 Melee . | . . . . . . . Uniques/NPCs Destroyed . | . . . . . . . Combat | -11 -10 -10 -10 -9 -8 -7 -------- Run | Yrd Mat Min Exi Min Mat Fac Hostile Shots Fired 275 | . 63 24 . 2 46 140 Missed 85 | . 18 3 . 1 17 46 Hits 190 | . 45 21 . 1 29 94 Melee 1 | . . . . . . 1 Projectile 189 | . 45 21 . 1 29 93 Critical Strikes 10 | . 2 . . . 2 6 Actively Blocked 1 | . 1 . . . . . Damage Taken 3562 | . 524 236 . 148 742 1912 Core 681 | . 127 29 . 64 211 250 Absorbed by Shields . | . . . . . . . Redirected to Shielding 60 | . 29 . . . 19 12 Regen/Repaired (Parts) 137 | . 137 . . . . . Core Remaining (%) 57 | 100 . . . 12 61 . Volleys Fired 139 | 12 53 13 . 2 24 35 Largest 2 | 2 2 2 . 1 1 2 Hottest 100 | 40 46 46 . 100 100 100 Shots Fired 220 | 24 106 26 . 2 24 38 Gun 160 | 24 106 26 . . . 4 Cannon 56 | . . . . 2 24 30 Launcher 4 | . . . . . . 4 Special . | . . . . . . . Kinetic 156 | 24 106 26 . . . . Thermal 56 | . . . . 2 24 30 Explosive 4 | . . . . . . 4 Electromagnetic 4 | . . . . . . 4 Robot Hit Streak 13 | 3 9 10 . 12 13 5 Robot Miss Streak 8 | 1 8 3 . . 3 2 Penetration Max . | . . . . . . . Secondary Targets 4 | . 2 2 . . . . Max Gunslinging Chain 1 | . 1 1 . . . . Shots Hit Robots 136 | 16 63 23 . 2 10 22 Core Hits 108 | 5 27 15 . 2 30 29 Critical Kills 8 | 1 . . . . 3 4 Critical Parts Destroyed . | . . . . . . . Critical Strikes 8 | 1 . . . . 3 4 Meltdown 7 | . . . . . 3 4 Destroy 1 | 1 . . . . . . Melee Attacks . | . . . . . . . Impact . | . . . . . . . Slashing . | . . . . . . . Piercing . | . . . . . . . Sneak Attacks . | . . . . . . . Combat Hostiles . | . . . . . . . Follow-up Attacks . | . . . . . . . Damage Inflicted 10004 | 124 753 304 . 386 4043 4394 Guns 1197 | 124 752 304 . . . 17 Cannons 3662 | . . . . 287 1276 2099 Explosions 5125 | . . . . 99 2748 2278 Melee . | . . . . . . . Ramming 20 | . 1 . . . 19 . Kinetic 1180 | 124 752 304 . . . . Thermal 8458 | . . . . 386 4024 4048 Explosive 296 | . . . . . . 296 Electromagnetic 50 | . . . . . . 50 Impact . | . . . . . . . Slashing . | . . . . . . . Piercing . | . . . . . . . Highest Corruption 9 | . . . . . . 9 Average Corruption 3 | . . . . . . 3 Corruption Purged . | . . . . . . . Corruption Blocked . | . . . . . . . Effects 56 | . . . . . . 56 Message Errors 19 | . . . . . . 19 Matter Fused 6 | . . . . . . 6 Heat Flow Errors 11 | . . . . . . 11 Energy Discharges 6 | . . . . . . 6 Data Loss (minor) 5 | . . . . . . 5 Data Loss (major) 5 | . . . . . . 5 Misfires 2 | . . . . . . 2 Alerts 2 | . . . . . . 2 Overload Shots . | . . . . . . . Overflow Damage 1403 | . . . . 47 324 1032 Projectiles 923 | . . . . 47 178 698 Explosions 480 | . . . . . 146 334 Melee . | . . . . . . . Knockbacks . | . . . . . . . Impact . | . . . . . . . Kinetic . | . . . . . . . Secondary . | . . . . . . . Self-Inflicted Damage 1150 | . . . . 138 324 688 Shots 18 | . . . . 2 5 11 Rammed 3 | . 2 . . . 1 . Targets Rammed 3 | . 2 . . . 1 . Kicked . | . . . . . . . Crushed . | . . . . . . . Highest Temperature 247 | . 37 9 . 102 . 247 Average Temperature 50 | . 8 4 . 59 . 90 Received Heat Transfer 876 | . 231 90 . 6 225 324 Siege Activations . | . . . . . . . Martial Activations . | . . . . . . . Shielding Activations . | . . . . . . . Robots Disrupted . | . . . . . . . Combat Hostiles . | . . . . . . . Robots Corrupted . | . . . . . . . Combat Hostiles . | . . . . . . . Parts Fried . | . . . . . . . Impact Corruptions . | . . . . . . . Robots Melted 7 | . . . . . 3 4 Combat Hostiles 7 | . . . . . 3 4 Parts Melted 16 | . . . . 1 5 10 Heat Transferred 7730 | . . . . 240 3890 3600 Parts Sabotaged . | . . . . . . . Parts Stolen . | . . . . . . . Parts Stripped . | . . . . . . . Power Chain Reactions . | . . . . . . . Alert | -11 -10 -10 -10 -9 -8 -7 ------- Run | Yrd Mat Min Exi Min Mat Fac Maximum Alert Level 2 | . . . . . 2 2 Low Security (%) 59 | 100 100 100 . 100 30 45 Level 1 16 | . . . . . 37 17 Level 2 23 | . . . . . 32 36 Level 3 . | . . . . . . . Level 4 . | . . . . . . . Level 5 . | . . . . . . . High Security . | . . . . . . . Max Security . | . . . . . . . Peak Influence 668 | 5 85 110 . 103 484 668 Initial 173 | . . . . . . 173 Average 187 | . 11 33 . 44 280 267 Influence Increases 2585 | 10 279 175 . 103 903 1115 Destroy 0b10 Robot/C 1260 | . 160 140 . 60 500 400 Destroy 0b10 Robot/NC 185 | 10 25 5 . . 60 85 Destroy Leader 278 | . 46 30 . 10 96 96 Successful Hack 52 | . 33 . . . 12 7 Disable Machine 330 | . 15 . . 15 45 255 Destroy Structure 480 | . . . . 18 190 272 Influence Decreases 1973 | 10 279 120 55 103 520 886 Entered New Map 265 | . . . 55 . . 210 Time Decay 1538 | 10 269 110 . 103 490 556 Lost Part 170 | . 10 10 . . 30 120 Squads Dispatched 11 | . . . . . 2 9 Investigation 1 | . . . . . . 1 Extermination 5 | . . . . . . 5 Reinforcement 5 | . . . . . 2 3 Assault . | . . . . . . . Garrison . | . . . . . . . Intercept . | . . . . . . . Searches Triggered . | . . . . . . . Construction Impeded 3 | . . . . . 1 2 Haulers Reinforced 1 | . . . . . . 1 Active Scanning Responses . | . . . . . . . Cargo Convoy Interrupts . | . . . . . . . Stealth | -11 -10 -10 -10 -9 -8 -7 --------- Run | Yrd Mat Min Exi Min Mat Fac Distress Signals 4 | . . . . . 3 1 Communications Jammed . | . . . . . . . Distress Signals . | . . . . . . . Times Spotted 82 | . 24 7 . 1 24 26 Peak Tracking Total 5 | . 4 5 . 1 4 3 Tactical Retreats . | . . . . . . . Traps | -11 -10 -10 -10 -9 -8 -7 ------- Run | Yrd Mat Min Exi Min Mat Fac Traps Triggered 3 | . . . . . . 3 Indirectly 1 | . . . . . . 1 Trap Hack Attempts . | . . . . . . . Triggered . | . . . . . . . Disarmed . | . . . . . . . Reprogrammed . | . . . . . . . Reused . | . . . . . . . Traps Extracted . | . . . . . . . Installed . | . . . . . . . Triggered . | . . . . . . . Machines | -11 -10 -10 -10 -9 -8 -7 ---------- Run | Yrd Mat Min Exi Min Mat Fac Machines Disabled 22 | . 1 . . 1 3 17 Max in Single Turn 4 | . 1 . . 1 2 4 Machines Repaired . | . . . . . . . Machines Dismantled . | . . . . . . . Machines Sabotaged . | . . . . . . . Overloaded Fab Kills . | . . . . . . . Hacking | -11 -10 -10 -10 -9 -8 -7 --------- Run | Yrd Mat Min Exi Min Mat Fac Machines Accessed 18 | . 10 . 1 . 3 4 Terminals 10 | . 7 . . . 1 2 Fabricators . | . . . . . . . Repair Stations 2 | . 1 . . . 1 . Recycling Units 4 | . 2 . . . 1 1 Scanalyzers 1 | . . . . . . 1 Garrison Access . | . . . . . . . Total Hacks 39 | . 26 . 1 . 5 7 Successful 22 | . 13 . 1 . 3 5 Failed 17 | . 13 . . . 2 2 Catastrophic 2 | . 1 . . . 1 . Database Lockouts . | . . . . . . . Manual 32 | . 23 . 1 . 4 4 Terminals 23 | . 19 . . . 2 2 Fabricators . | . . . . . . . Repair Stations 4 | . 3 . . . 1 . Recycling Units 8 | . 4 . . . 2 2 Scanalyzers 3 | . . . . . . 3 Garrison Access . | . . . . . . . Terminal Hacks 3 | . 2 . 1 . . . Branch Access Points 1 | . 1 . . . . . Terminal Index 1 | . 1 . . . . . Proto ID Catalog 1 | . . . 1 . . . Fabricator Hacks . | . . . . . . . Repair Station Hacks 3 | . 2 . . . 1 . Scan Component 2 | . 1 . . . 1 . Repair 1 | . 1 . . . . . Recycling Unit Hacks . | . . . . . . . Scanalyzer 2 | . . . . . . 2 Insert Component 1 | . . . . . . 1 Retrieve Study 1 | . . . . . . 1 Garrison Access Hacks . | . . . . . . . Unauthorized Hacks 14 | . 9 . . . 2 3 Terminals 6 | . 5 . . . . 1 Botnet 6 | . 5 . . . . 1 Fabricators . | . . . . . . . Repair Stations . | . . . . . . . Recycling Units 8 | . 4 . . . 2 2 Reject 4 | . 2 . . . 1 1 Mask 4 | . 2 . . . 1 1 Scanalyzers . | . . . . . . . Garrison Access . | . . . . . . . Data Cores Recovered . | . . . . . . . Used . | . . . . . . . Hacking Detections 12 | . 7 . . . 2 3 Full Trace Events 1 | . . . . . . 1 Feedback Events . | . . . . . . . Feedback Blocked . | . . . . . . . Robot Schematics Acquired . | . . . . . . . Robots Built . | . . . . . . . Authchips . | . . . . . . . Time . | . . . . . . . Total Robot Build Rating . | . . . . . . . Part Schematics Acquired . | . . . . . . . Parts Built . | . . . . . . . Authchips . | . . . . . . . Time . | . . . . . . . Total Part Build Rating . | . . . . . . . Part Studies Acquired 1 | . . . . . . 1 Parts Repaired 1 | . 1 . . . . . Time 26 | . 26 . . . . . Parts Recycled . | . . . . . . . Recycled Matter . | . . . . . . . Retrieved Matter . | . . . . . . . Retrieved Components . | . . . . . . . Parts Scanalyzed . | . . . . . . . Part Schematics Acquired . | . . . . . . . Parts Damaged . | . . . . . . . Bothacking | -11 -10 -10 -10 -9 -8 -7 ------------ Run | Yrd Mat Min Exi Min Mat Fac Used RIF Installer . | . . . . . . . Robots Hacked . | . . . . . . . Non-combat . | . . . . . . . Combat . | . . . . . . . Robot Hacks Applied . | . . . . . . . Relay Couplers Released . | . . . . . . . Fabnet Peak Effective % . | . . . . . . . Robots Rewired . | . . . . . . . Allies Hacked . | . . . . . . . Hacks Repelled . | . . . . . . . Allies | -11 -10 -10 -10 -9 -8 -7 -------- Run | Yrd Mat Min Exi Min Mat Fac Total Allies 1 | . 1 . . . . . Largest Group 1 | . 1 . . . . . Highest-Rated Group 25 | . 25 . . . . . Highest-Rated Ally 25 | . 25 . . . . . Total Orders . | . . . . . . . Ally Attacks . | . . . . . . . Total Damage . | . . . . . . . Kills . | . . . . . . . Allies Corrupted . | . . . . . . . Allies Melted . | . . . . . . . Intel | -11 -10 -10 -10 -9 -8 -7 ------- Run | Yrd Mat Min Exi Min Mat Fac Active Infowar (turns) 2146 | 29 921 . . . 117 1079 Optics 640 | . 640 . . . . . Sensors 953 | . . . . . 113 840 Terrain 1303 | 29 281 . . . 117 876 Structural 22 | . . . . . . 22 ECM 260 | . . . . . . 260 Robot Analysis Total . | . . . . . . . Derelict Logs Recovered 1 | . . 1 . . . . Drone Launches . | . . . . . . . Drone Recoveries . | . . . . . . . Exploration | -11 -10 -10 -10 -9 -8 -7 ------------- Run | Yrd Mat Min Exi Min Mat Fac Turns Passed 9013 | 109 1825 322 1464 257 1983 3053 Spaces Moved 3070 | 65 1020 174 397 45 424 945 Core 4 | 1 . . . . . 3 Treads 2877 | 1 894 174 397 45 424 942 Legs . | . . . . . . . Wheels 189 | 63 126 . . . . . Hover . | . . . . . . . Flight . | . . . . . . . Fastest Speed 50 | 50 100 160 160 560 385 50 Average Speed 264 | 100 152 160 365 560 398 300 Slowest Speed 2550 | 160 160 160 560 560 1040 2550 Overloaded Moves . | . . . . . . . Propulsion Burnouts . | . . . . . . . Robots Hopped . | . . . . . . . Potential Cave-ins . | . . . . . . . Cave-ins Triggered . | . . . . . . . Exploration Rate (%) 39 | 3 99 37 66 9 38 25 Regions Visited 6 Branch Regions 3 Pre-discovered Areas 1 | . . 1 . . . . Known Exits Taken 1 | . 1 . . . . . Unknown Exits Taken 5 | 1 . 1 1 1 1 . Scrap Searched 1 | . . 1 . . . . Spaces Dug 14 | . . . . . . 14 Terrain Destroyed 570 | . . . . 20 232 318 Melee . | . . . . . . . Projectile 15 | . . . . . 8 7 AOE 555 | . . . . 20 224 311 Terrain Rammed . | . . . . . . . Walls Destroyed . | . . . . . . . Machines Disabled . | . . . . . . . Actions | -11 -10 -10 -10 -9 -8 -7 --------- Run | Yrd Mat Min Exi Min Mat Fac Total 3640 | 86 1188 192 415 48 641 1070 Wait 229 | . 74 1 . . 150 4 Move 3064 | 64 1019 173 396 44 423 945 Hop . | . . . . . . . Pick Up 93 | 3 17 3 12 2 24 32 Fast Attach 17 | 7 3 . 2 . 2 3 Attach 14 | . . 1 . . 5 8 Detach 3 | . . . 2 . . 1 Swap 33 | . 9 . . . 7 17 Drop 45 | . 11 1 3 . 5 25 Fire 139 | 12 53 13 . 2 24 35 Melee . | . . . . . . . Ram . | . . . . . . . Kick . | . . . . . . . Crush 3 | . 2 . . . 1 . Escape Stasis . | . . . . . . . Rewire . | . . . . . . . Trap . | . . . . . . . Miscellaneous . | . . . . . . . Route ------- -11/Scrapyard -10/Materials (discovered 5 exits: [*Mat x3] / *Min / [*Sub]) -10/Mines -10/Exiles -9/Mines -8/Materials -7/Factory History --------- Turn | Location | Event 22 | -11/Scrapyard | Discovered new exit (range 14) 110 | -11/Scrapyard | Entered Materials 180 | -10/Materials | Botcube activated 314 | -10/Materials | Build established: Mutant 662 | -10/Materials | Discovered new exit (range 16) 966 | -10/Materials | Discovered new exit (range 8) 1191 | -10/Materials | Core integrity fell below 50% 1244 | -10/Materials | Identified exit to Mines 1328 | -10/Materials | Discovered new exit (range 6) 1542 | -10/Materials | Discovered new exit (range 6) 1843 | -10/Materials | Repaired Lgt. Treads 1935 | -10/Materials | Entered Mines 2215 | -10/Mines | Learned location of Zion (-7) 2225 | -10/Mines | Deemed a non-threat by the Exiles lab entrance 2225 | -10/Mines | Discovered new exit (range 5) 2257 | -10/Mines | Entered Exiles 2294 | -10/Exiles | Met 8R-AWN 2320 | -10/Exiles | Met EX-HEX 2374 | -10/Exiles | Met EX-BIN 2393 | -10/Exiles | Aligned with FarCom system 2395 | -10/Exiles | Given EX-Vault access code 2432 | -10/Exiles | Opened EX-Vault 2446 | -10/Exiles | Found YOLO Cannon 2497 | -10/Exiles | Warned to stay clear of 0b10 Research branches 2566 | -10/Exiles | Met EX-DEC 2984 | -10/Exiles | Build established: Hauler-Mutant 3648 | -10/Exiles | Discovered new exit (range 14) 3721 | -10/Exiles | Left Exiles lab with YOLO Cannon 3721 | -10/Exiles | Entered Mines 3722 | -9/Mines | Core integrity fell below 20% 3927 | -9/Mines | Discovered new exit (range 8) 3978 | -9/Mines | Entered Materials 3978 | -8/Materials | Evolved 4 slots: Propulsion x1, Utility x3 5780 | -8/Materials | Discovered new exit (range 4) 5961 | -8/Materials | Entered Factory 5961 | -7/Factory | Evolved 2 slots: Propulsion x1, Utility x1 6253 | -7/Factory | Build established: Hauler-Skirmisher 7152 | -7/Factory | Build established: Hauler-Mutant 8082 | -7/Factory | Found Powered Armor 8951 | -7/Factory | YOLO Cannon suddenly exploded 8952 | -7/Factory | Core integrity fell below 50% 9014 | -7/Factory | Self-destructed Last Messages --------------- 08988_ System corrupted: Component data lost. 08989_ K-01 Serf collects debris. 08994_ Missile Launcher destroyed. 08995_ K-01 Serf collects debris. 08997_ Arc Projector destroyed. 08998_ The unstable cave ceiling collapses. 08999_ K-01 Serf collects debris. 09000_ Acquired Arm. Treads+. 09000_ U-05 Engineer lays Concrete. 09003_ K-01 Serf collects debris. 09003_ Acquired Arm. Treads+. 09003_ U-05 Engineer lays Concrete. 09005_ The unstable cave ceiling collapses. 09006_ U-05 Engineer builds a Wall. 09007_ K-01 Serf collects debris. 09008_ Acquired Arm. Treads+. 09009_ 9:K1D4S0YKITLKUTLA=SBD| 09010_ U-05 Engineer lays Concrete. 09012_ U-05 Engineer builds a Wall. 09013_ K-01 Serf destroyed. Map ----- +----------------------------------------------------+ | ????# #???????# ### | | ????######"""""###???????# #### #?? | | ?????????######??????????# #??# ############/##### | | ?????????????????????????# #??# #???????# # | | ?????????????????????????# #??# #???????# # | | ?????????????????????????# #??# #???????# # | | ?????????????????????????# #??# #???????# # | | ???????????????????????###+####/#####???# # | | ???????????????????????# #???# # | | ????????????? ?????????# #???# * # | | ??????????? ????????# #???# # | | ?????????? ????????# """ """ #???# # | | ?????????? ???????# """ """ #???########## | | ???????? ? ??????# """ """ #????????????? | | ???????? ??????# #????????????? | | ??????? ?????# """ """ #????????????? | | ??????? ] ?????# """ """ ############## | | ??????? [ ????# """ """ ## | | ??????# ????# ## | | ??????? k ##### ## = | | ??????? ## # ####+########### | | ????? !% %u # | | ????? ! !! # """ | | ????? = !!] + """ | | ????? p ]%! ! # """ | | ?????? !! ![[@ # "" "" | | ?????? # ##### #k #######+##+# S"" "" ] | | ??????? ???? ###?# # "" | | ???????/ "???""" # # #???#""" # | | ???????#????? """ #####???#""" ############# | | ??????????????""" ????????#""" #???????????? | | ????????????? ????????# #???????????? | | ????????????? """ ????????#""" #???????????? | | ????????????" """ ????????#""" #???????????? | | ??????????????""" ????????#""" #???????????? | | ???????????????? ?????????? #???????????? | | ??????????????? ???????????########???????????? | | ??????????????? ??????????????????????????????? | | ?????????????????????????????????????????????????? | | ?????????????????????????????????????????????????? | | ?????????????????????????????????????????????????? | | ?????????????????????????????????????????????????? | | ?????????????????????????????????????????????????? | | ?????????????????????????????????????????????????? | | ?????????????????????????????????????????????????? | | ?????????????????????????????????????????????????? | | ?????????????????????????????????????????????????? | | ?????????????????????????????????????????????????? | | ?????????????????????????????????????????????????? | | ?????????????????????????????????????????????????? | +----------------------------------------------------+ Best States ------------- Heat Dissipation 62 Energy Generation 16 Energy Capacity 290 Matter Stores 300 Matter Capacity 300 Sight Range 18 Robot Scan Range 14 Terrain Scan Range 16 Terrain Scan Density 110 ECM Strength 2 Armor Coverage 225 Weapon Shielding 66 Evasion (%) 50 Targeting Accuracy 6 Target Analysis 5 Armor Integrity Analysis 30 Recoil Reduction 4 Offensive Hacking 10 Defensive Hacking 10 Item Schematics ----------------- None Robot Schematics ------------------ None Fabricated ------------ Nothing Repaired ---------- Lgt. Treads | 2% | -10/Materials Studied --------- Arm. Treads | -7/Factory | Hacked Alien Tech Used ----------------- None Achievements -------------- YOLO Challenges ------------ None Game ------ Seed DrainedOpticalMicrothruster Manual? 0 Play Time 00:57:23 Cumulative 113.8 hours Start 2026.02.13 @ 17:51:30 End 2026.02.14 @ 14:04:17 Sessions 3 Manual Loads 0 Difficulty Rogue Special Mode None Game No. 141 Rogue 141 Adventurer 0 Explorer 0 Win Type - Total 1 Types 1/0/0/0/0/0/0/0/0/0 Lore% 24 Gallery% 45 Achievement% 31 Wizard Run 0 Options --------- Layout 0 ASCII 0 Keyboard 0 Movement Mouse Keybinds 0 Fullscreen 1 Font 24/Smallcaps Map View 76x50 Zoom Use 0% Tactical HUD 1 Map Filters NONE Filters NONE Steam 1 RUN: be5e4d0f-023a-4b31-a3f0-2dc1740d4426